bitfinex-derivatives/quotes_SOLF0:USTF0_20260315
["timestamp","ask_amount","ask_price","bid_price","bid_amount"]
[1773618695896,15.59604591,92.018,91.952,20.51132544]
[1773618696501,15.59604591,92.018,91.96,9.785]
[1773618696698,15.59604591,92.018,91.961,20.51132544]
[1773618696998,8.09320763,92.08,91.92,8.09320763]
[1773618696999,15.60134626,92.065,91.981,20.51132544]
[1773618697200,15.60134626,92.065,91.934,13.35170333]
[1773618697201,15.60134626,92.065,91.961,20.51132544]
[1773618697501,15.60134626,92.049,91.961,20.51132544]
[1773618698099,9.776,92.046,91.982,20.51132544]
[1773618698405,25.12607968,92.046,91.982,20.51132544]
[1773618698807,9.775,92.056,91.987,20.51132544]
[1773618700007,25.2028308,92.056,91.987,20.51132544]
[1773618700303,9.775,92.052,91.987,20.51132544]
[1773618700497,24.94933775,92.052,91.987,20.51132544]
[1773618700701,15.1781263,92.041,91.978,9.783]
[1773618700898,15.1781263,92.041,91.979,20.51132544]
[1773618701509,15.1781263,92.041,91.983,30.29332544]
[1773618702007,15.1781263,92.041,91.983,20.51132544]
[1773618703507,9.776,92.04,91.985,9.782]
[1773618705411,9.777,92.034,91.983,20.51132544]
[1773618705807,15.25789589,92.039,91.983,20.51132544]
[1773618707810,15.25789589,92.039,91.985,20.51132544]
[1773618709015,15.25789589,92.039,91.987,20.51132544]
[1773618710216,9.777,92.036,91.987,20.51132544]
[1773618710716,9.777,92.036,91.939,20.18831006]
[1773618710717,15.02850558,92.081,92.011,20.51132544]
[1773618710907,15.02850558,92.085,92.011,20.51132544]
[1773618711216,15.02850558,92.069,92.011,20.51132544]
[1773618712516,9.774,92.059,92.011,20.51132544]
[1773618713518,15.02850558,92.069,92.011,20.51132544]
[1773618714317,15.02850558,92.069,91.97,8.09320763]
[1773618714318,15.02850558,92.069,92.013,19.51904411]
[1773618715315,15.08125909,92.068,92.017,19.51904411]
[1773618716509,9.774,92.063,92.017,19.51904411]
[1773618718518,15.55287608,92.086,92.017,19.51904411]
[1773618719109,15.55568907,92.062,92.001,19.51904411]
[1773618719920,15.6207564,92.079,92.001,19.51904411]
[1773618721418,15.6420201,92.053,92.001,19.51904411]
[1773618722221,9.776,92.042,92.001,19.51904411]
[1773618722716,15.64520703,92.041,91.979,13.35170333]
[1773618722914,15.64520703,92.041,91.971,19.51904411]
[1773618724419,9.778,92.025,91.973,19.51904411]
[1773618724619,15.64520703,92.041,91.973,19.51904411]
[1773618725515,15.64520703,92.041,91.987,19.51904411]
[1773618725723,15.43165139,92.069,91.987,19.51904411]
[1773618726219,9.777,92.039,91.989,19.51904411]
[1773618726416,15.43165139,92.055,91.989,19.51904411]
[1773618726621,15.41979393,92.071,91.989,19.51904411]
[1773618727625,9.774,92.059,92.007,29.29904411]
[1773618727918,9.774,92.059,92.007,19.51904411]
[1773618728120,15.87575827,92.049,91.989,19.51904411]
[1773618729521,9.774,92.061,92.003,19.51904411]
[1773618730626,9.774,92.061,92.006,19.51904411]
[1773618731525,9.775,92.054,92.006,19.51904411]
[1773618732119,9.777,92.038,91.988,19.51904411]
[1773618732322,15.89659139,92.054,91.988,19.51904411]
[1773618732523,15.89659139,92.054,91.964,19.51904411]
[1773618732723,9.778,92.022,91.966,19.51904411]
[1773618733521,9.778,92.022,91.967,9.784]
[1773618734128,9.778,92.022,91.97,29.30304411]
[1773618734422,15.89825439,92.029,91.971,19.51904411]
[1773618735531,15.89825439,92.029,91.974,19.51904411]
[1773618736124,9.776,92.04,91.978,19.51904411]
[1773618736330,15.84161242,92.079,91.986,13.35170333]
[1773618736530,15.84161242,92.079,91.988,19.51904411]
[1773618736733,15.84161242,92.079,91.992,19.51904411]
[1773618737125,15.84161242,92.079,91.992,32.87074744]
[1773618737326,15.84161242,92.079,91.993,19.51904411]
[1773618737527,9.773,92.069,92.014,19.51904411]
[1773618738537,9.773,92.069,92.017,9.779]
[1773618739325,9.774,92.062,92.005,9.78]
[1773618739531,15.49961414,92.059,91.982,19.51904411]
[1773618739928,15.49961414,92.059,91.974,13.35170333]
[1773618739929,9.776,92.044,91.985,19.51904411]
[1773618741233,9.775,92.053,91.988,19.51904411]
[1773618741738,15.49961414,92.059,91.992,19.51904411]
[1773618742037,34.18,92.083,91.996,13.35170333]
[1773618742038,9.773,92.071,91.996,13.35170333]
[1773618742239,15.21598021,92.07,92.001,20.44042751]
[1773618742935,15.21598021,92.07,92.017,9.779]
[1773618743136,15.21598021,92.07,92.017,30.21942751]
[1773618743929,15.21598021,92.07,92.006,9.78]
[1773618744639,9.774,92.06,92.006,9.78]
[1773618745036,15.21598021,92.07,91.98,8.09588467]
[1773618745037,15.01096878,92.05,91.985,20.44042751]
[1773618746038,14.88361024,92.041,91.985,20.44042751]
[1773618746539,14.78306381,92.06,91.987,20.44042751]
[1773618747645,9.775,92.057,91.999,9.781]
[1773618747844,9.775,92.057,92.0,20.44042751]
[1773618750446,24.31229898,92.057,92.0,20.44042751]
[1773618751048,9.775,92.05,92.0,20.44042751]
[1773618751244,14.4560796,92.049,91.989,9.782]
[1773618751447,14.4560796,92.049,91.984,20.44042751]
[1773618752645,9.777,92.036,91.984,20.44042751]
[1773618753543,9.777,92.032,91.971,9.784]
[1773618753750,14.20412011,92.035,91.971,9.784]
[1773618753751,14.20412011,92.031,91.971,9.784]
[1773618754454,14.20412011,92.031,91.972,20.44042751]
[1773618754753,14.20412011,92.031,91.975,20.44042751]
[1773618755048,14.12127489,92.073,91.975,20.44042751]
[1773618755346,14.12127489,92.073,91.99,20.44042751]
[1773618755552,14.06002221,92.059,91.99,20.44042751]
[1773618756653,13.86087913,92.038,91.99,20.44042751]
[1773618757046,13.86087913,92.038,91.978,9.783]
[1773618757251,9.778,92.029,91.978,9.783]
[1773618757453,23.62575054,92.029,91.978,9.783]
[1773618757747,13.77296104,92.028,91.978,9.783]
[1773618758151,9.778,92.026,91.974,20.44042751]
[1773618759350,9.778,92.026,91.975,9.783]
[1773618759556,13.77296104,92.028,91.976,20.44042751]
[1773618759759,13.5024461,92.068,91.976,20.44042751]
[1773618759956,9.775,92.05,91.994,29.37021119]
[1773618760347,13.5024461,92.049,91.994,29.37021119]
[1773618760548,13.5024461,92.049,92.004,9.78]
[1773618760950,13.5024461,92.049,91.994,19.58921119]
[1773618761351,13.5024461,92.049,91.997,19.58921119]
[1773618761751,9.775,92.057,91.997,19.58921119]
[1773618762457,3.40022679,92.06,91.997,19.58921119]
[1773618762658,12.86303355,92.059,91.997,19.58921119]
[1773618762849,9.775,92.056,91.997,19.58921119]
[1773618763256,22.63803355,92.056,91.997,19.58921119]
[1773618763955,12.86303355,92.056,92.0,19.58921119]
[1773618764661,12.86303355,92.056,92.002,19.58921119]
[1773618767256,34.18,92.077,91.989,9.782]
[1773618767257,12.57787379,92.055,91.989,9.782]
[1773618767462,12.57787379,92.055,91.987,13.35170333]
[1773618767463,12.57787379,92.055,91.99,19.58921119]
[1773618768261,9.776,92.047,91.99,19.58921119]
[1773618768463,12.57787379,92.055,91.99,19.58921119]
[1773618769661,12.57787379,92.055,91.993,19.58921119]
[1773618770959,11.97331041,92.054,91.994,9.781]
[1773618771364,11.97331041,92.054,91.993,19.58921119]
[1773618771659,11.97209342,92.038,91.993,19.58921119]
[1773618775458,11.53307036,92.056,91.993,19.58921119]
[1773618776574,11.53307036,92.056,92.004,17.99424716]
[1773618777173,11.53307036,92.056,91.955,34.18]
[1773618777174,11.41474007,92.071,92.006,17.99424716]
[1773618777774,11.41474007,92.071,92.021,9.778]
[1773618778677,11.28960483,92.069,92.008,17.99424716]
[1773618780578,11.42740475,92.057,92.008,17.99424716]
[1773618780772,11.42740475,92.057,92.001,9.78]
[1773618780773,11.42740475,92.057,91.993,17.99424716]
[1773618781571,9.776,92.045,91.993,17.99424716]
[1773618783077,9.775,92.053,91.997,17.99424716]
[1773618783476,11.32472978,92.072,91.997,17.99424716]
[1773618783679,11.32472978,92.072,92.004,17.99424716]
[1773618784080,9.773,92.071,92.019,17.99424716]
[1773618784282,11.32472978,92.072,92.019,17.99424716]
[1773618784581,9.771,92.088,92.032,17.99424716]
[1773618785683,3.39739891,92.07,92.016,17.99424716]
[1773618785886,11.14493684,92.069,92.016,17.99424716]
[1773618786379,3.39739891,92.08,92.021,17.99424716]
[1773618786577,14.54223887,92.08,92.021,17.99424716]
[1773618786778,11.09313207,92.079,92.021,17.99424716]
[1773618787584,11.09313207,92.079,92.029,9.778]
[1773618788185,11.09313207,92.079,92.03,17.99424716]
[1773618788377,9.92885237,92.12,92.02,3.39739891]
[1773618788378,10.97387982,92.1,92.034,17.99424716]
[1773618788578,10.97387982,92.115,92.051,17.99424716]
[1773618788785,3.39528311,92.11,92.051,17.99424716]
[1773618789681,3.39528311,92.11,92.055,17.99424716]
[1773618790283,10.66435704,92.105,92.055,17.99424716]
[1773618790487,10.64174863,92.099,92.042,17.99424716]
[1773618790988,10.64174863,92.099,92.046,17.99424716]
[1773618792188,34.18,92.129,92.013,34.18]
[1773618792189,10.4129879,92.089,92.034,17.99424716]
[1773618792384,3.39528311,92.08,92.034,17.99424716]
[1773618792585,3.39528311,92.07,92.034,17.99424716]
[1773618792987,3.39528311,92.08,92.034,17.99424716]
[1773618794391,3.39528311,92.09,92.034,17.99424716]
[1773618794584,3.39528311,92.1,92.034,17.99424716]
[1773618794891,10.25547062,92.079,92.034,17.99424716]
[1773618795891,3.39528311,92.06,92.018,17.99424716]
[1773618796291,3.39528311,92.07,92.018,17.99424716]
[1773618797293,10.25547062,92.079,92.02,21.38953027]
[1773618797591,34.18,92.129,91.969,32.57]
[1773618797592,3.39528311,92.09,92.031,17.99424716]
[1773618797790,9.771,92.089,92.032,17.99424716]
[1773618798493,3.39528311,92.08,92.032,17.99424716]
[1773618798893,34.18,92.129,92.011,17.99424716]
[1773618798894,9.90737564,92.079,92.011,17.99424716]
[1773618799995,10.87,92.125,92.011,17.99424716]
[1773618799996,19.55387127,92.065,92.011,17.99424716]
[1773618801591,9.72106346,92.064,92.011,17.99424716]
[1773618802188,9.72106346,92.064,92.012,9.779]
[1773618802394,9.72106346,92.064,92.013,17.09987035]
[1773618803597,9.72106346,92.064,92.016,17.09987035]
[1773618805189,9.773,92.075,92.018,17.09987035]
[1773618806594,9.30631665,92.079,92.022,9.778]
[1773618806791,9.30631665,92.079,92.023,17.09987035]
[1773618807392,20.79907116,92.122,92.0,13.35170333]
[1773618807393,9.12195431,92.077,92.014,17.09987035]
[1773618807794,9.773,92.076,92.02,17.09987035]
[1773618807997,9.03553548,92.076,92.004,17.09987035]
[1773618808194,9.03553548,92.098,92.006,13.35170333]
[1773618808496,9.03553548,92.098,92.012,17.09987035]
[1773618808799,9.03553548,92.098,91.975,26.91971962]
[1773618808800,8.9913837,92.128,92.042,17.09987035]
[1773618809299,8.9913837,92.128,92.045,17.09987035]
[1773618809890,8.92332665,92.126,92.058,17.09987035]
[1773618811495,9.768,92.119,92.058,17.09987035]
[1773618812796,8.93710882,92.119,92.061,17.09987035]
[1773618813294,8.93710882,92.115,92.061,17.09987035]
[1773618813800,8.83975806,92.111,92.061,17.09987035]
[1773618814492,8.08981569,92.13,92.061,17.09987035]
[1773618814493,8.96259407,92.109,92.061,17.09987035]
[1773618814796,8.96259407,92.109,92.043,17.09987035]
[1773618815193,9.77,92.097,92.043,17.09987035]
[1773618817695,9.771,92.09,92.043,17.09987035]
[1773618817895,8.28780058,92.089,92.043,17.09987035]
[1773618821201,10.67587463,92.152,92.029,17.09987035]
[1773618821202,11.73046704,92.08,92.029,17.09987035]
[1773618821401,8.33286817,92.079,92.029,17.09987035]
[1773618821602,3.39759887,92.07,92.029,17.09987035]
[1773618822104,8.33286817,92.079,92.029,17.09987035]
[1773618823406,18.10486817,92.079,92.029,17.09987035]
[1773618823999,8.15747629,92.078,92.029,17.09987035]
[1773618824507,17.93806378,92.077,92.029,17.09987035]
[1773618824704,8.16506378,92.077,92.029,17.09987035]
[1773618827713,9.771,92.088,92.031,17.09987035]
[1773618828107,7.86161358,92.095,92.031,17.09987035]
[1773618828507,7.73216835,92.089,92.034,17.09987035]
[1773618829805,7.56556006,92.079,92.034,17.09987035]
[1773618830310,7.56556006,92.078,92.034,17.09987035]
[1773618831013,7.49706424,92.094,92.034,17.09987035]
[1773618832421,7.49706424,92.094,92.043,15.98009076]
[1773618832618,3.39759887,92.09,92.043,15.98009076]
[1773618833415,7.49706424,92.094,92.043,15.98009076]
[1773618833616,17.26806424,92.094,92.043,15.98009076]
[1773618834213,7.49706424,92.094,92.043,15.98009076]
[1773618835408,9.771,92.092,92.043,15.98009076]
[1773618836813,7.49706424,92.094,92.045,16.40199908]
[1773618838117,7.49706424,92.094,92.047,16.40199908]
[1773618838518,9.771,92.092,92.047,16.40199908]
[1773618839017,7.49706424,92.094,92.047,16.40199908]
[1773618839514,6.75401906,92.12,92.047,16.40199908]
[1773618839716,19.528,92.161,92.047,16.40199908]
[1773618839717,6.75401906,92.125,92.06,19.79959795]
[1773618840212,10.09240622,92.11,92.06,16.40199908]
[1773618840417,3.39759887,92.12,92.06,19.79959795]
[1773618840917,3.39759887,92.11,92.06,16.40199908]
[1773618843016,6.53842925,92.099,92.044,16.40199908]
[1773618843217,6.53842925,92.089,92.044,16.40199908]
[1773618848025,3.39759887,92.09,92.048,16.40199908]
[1773618849124,5.95445792,92.103,92.048,16.40199908]
[1773618849429,6.45760221,92.089,92.048,16.40199908]
[1773618849825,9.771,92.087,92.048,16.40199908]
[1773618851631,6.45760221,92.089,92.048,16.40199908]
[1773618852023,6.30718415,92.079,92.032,9.777]
[1773618853033,6.25447286,92.085,92.035,16.40199908]
[1773618853632,6.25447286,92.085,92.038,16.40199908]
[1773618855033,3.39743393,92.09,92.043,16.40199908]
[1773618856434,3.39743393,92.08,92.028,16.40199908]
[1773618856635,3.39743393,92.09,92.028,16.40199908]
[1773618857336,3.39743393,92.09,92.031,16.40199908]
[1773618857533,3.39743393,92.09,92.039,16.40199908]
[1773618858230,3.39743393,92.09,92.041,16.40199908]
[1773618859031,3.39743393,92.08,92.041,16.40199908]
[1773618859330,6.00166682,92.089,92.041,16.40199908]
[1773618859536,3.39743393,92.09,92.041,16.40199908]
[1773618860733,3.39743393,92.1,92.043,16.40199908]
[1773618861329,9.77,92.098,92.045,16.40199908]
[1773618861727,15.62402887,92.098,92.045,16.40199908]
[1773618861931,3.39743393,92.08,92.045,16.40199908]
[1773618862133,5.8161563,92.079,92.03,15.0019572]
[1773618867643,5.44900837,92.097,92.041,15.0019572]
[1773618868542,5.44900837,92.097,92.045,9.776]
[1773618868738,9.769,92.106,92.046,15.0019572]
[1773618868940,9.769,92.106,92.051,15.0019572]
[1773618870137,9.769,92.106,92.052,15.0019572]
[1773618874441,9.768,92.115,92.061,15.0019572]
[1773618874645,5.74330036,92.122,92.071,15.0019572]
[1773618874945,3.39743393,92.12,92.071,15.0019572]
[1773618875135,5.74330036,92.122,92.071,15.0019572]
[1773618875747,5.81345004,92.136,92.081,15.0019572]
[1773618875945,5.81345004,92.15,92.091,15.0019572]
[1773618876147,9.21088397,92.15,92.091,15.0019572]
[1773618876645,5.84628152,92.149,92.091,15.0019572]
[1773618877946,9.765,92.151,92.091,15.0019572]
[1773618879150,5.72058355,92.147,92.091,15.0019572]
[1773618880647,9.765,92.145,92.091,15.0019572]
[1773618880946,5.72058355,92.147,92.1,15.0019572]
[1773618882548,15.48558355,92.147,92.1,15.0019572]
[1773618884654,9.764,92.157,92.1,15.0019572]
[1773618885449,3.39743393,92.16,92.102,15.0019572]
[1773618886250,5.39452045,92.159,92.102,15.0019572]
[1773618886553,9.764,92.158,92.102,15.0019572]
[1773618888546,9.764,92.156,92.104,15.0019572]
[1773618888754,3.39743393,92.15,92.104,15.0019572]
[1773618888949,5.31287526,92.156,92.104,15.0019572]
[1773618889145,5.31287526,92.156,92.105,15.0019572]
[1773618889753,5.18863273,92.149,92.09,15.0019572]
[1773618889950,5.18863273,92.129,92.076,15.0019572]
[1773618890352,5.18863273,92.144,92.083,15.0019572]
[1773618891052,5.18863273,92.144,92.087,15.0019572]
[1773618891252,3.39743393,92.12,92.061,15.0019572]
[1773618891446,3.39743393,92.11,92.061,15.0019572]
[1773618891648,5.01800709,92.109,92.061,15.0019572]
[1773618894155,5.01800709,92.109,92.063,9.774]
[1773618894358,5.01800709,92.109,92.064,15.06222341]
[1773618895156,3.39743393,92.11,92.066,9.774]
[1773618895359,34.18,92.119,92.067,15.06222341]
[1773618895558,4.75576778,92.109,92.067,15.06222341]
[1773618897264,9.769,92.107,92.067,15.06222341]
[1773618897566,3.39743393,92.1,92.067,15.06222341]
[1773618897758,9.77,92.097,92.052,15.06222341]
[1773618897963,3.39743393,92.09,92.052,15.06222341]
[1773618898157,3.39743393,92.09,92.043,9.776]
[1773618898158,4.65059381,92.089,92.043,9.776]
[1773618898364,4.65059381,92.079,92.033,15.06222341]
[1773618901761,4.21556134,92.102,92.041,15.06222341]
[1773618901966,3.39743393,92.09,92.041,15.06222341]
[1773618902164,3.39743393,92.1,92.041,15.06222341]
[1773618902467,3.39743393,92.11,92.065,15.06222341]
[1773618902767,34.18,92.119,92.071,15.06222341]
[1773618903565,34.18,92.119,92.073,15.06222341]
[1773618905562,9.766,92.139,92.077,15.06222341]
[1773618905762,3.39743393,92.15,92.091,15.06222341]
[1773618906168,34.2,92.158,92.091,15.06222341]
[1773618906363,3.39743393,92.15,92.091,15.06222341]
[1773618906568,3.39743393,92.15,92.093,9.771]
[1773618906769,3.39743393,92.15,92.094,15.06222341]
[1773618907071,43.964,92.158,92.094,15.06222341]
[1773618908066,3.39743393,92.15,92.096,15.06222341]
[1773618909572,3.39743393,92.15,92.055,20.23443924]
[1773618909573,4.08725882,92.109,92.059,15.06222341]
[1773618909773,4.08725882,92.109,92.041,13.35170333]
[1773618909774,3.39743393,92.09,92.044,15.06222341]
[1773618910073,34.2,92.106,92.055,9.775]
[1773618910373,3.39743393,92.11,92.056,15.06222341]
[1773618910574,9.769,92.107,92.056,15.06222341]
[1773618912180,3.39616899,92.11,92.056,15.06222341]
[1773618913380,3.39616899,92.11,92.061,15.06222341]
[1773618915983,3.39616899,92.1,92.061,15.06222341]
[1773618917181,13.16516899,92.11,92.061,15.06222341]
[1773618918072,3.39616899,92.1,92.061,15.06222341]
[1773618921888,9.77,92.098,92.061,15.06222341]
[1773618922081,3.39616899,92.1,92.061,15.06222341]
[1773618922588,3.39616899,92.12,92.061,15.06222341]
[1773618924485,3.39616899,92.11,92.063,14.96084242]
[1773618925588,3.39616899,92.1,92.063,14.96084242]
[1773618927786,5.56933155,92.1,92.043,14.96084242]
[1773618927990,3.39616899,92.09,92.043,14.96084242]
[1773618928589,3.39616899,92.09,92.044,9.776]
[1773618929089,3.39616899,92.09,92.045,14.96084242]
[1773618930393,3.39616899,92.1,92.045,14.96084242]
[1773618931482,9.77,92.099,92.045,14.96084242]
[1773618931686,9.77,92.099,91.996,26.91971962]
[1773618931687,2.00371489,92.13,92.06,3.39616899]
[1773618931891,3.39616899,92.12,92.061,14.96084242]
[1773618932291,3.39616899,92.12,92.06,3.39616899]
[1773618932292,9.768,92.119,92.067,14.96084242]
[1773618932587,2.00371489,92.13,92.067,14.96084242]
[1773618932588,3.39616899,92.11,92.067,14.96084242]
[1773618932983,3.39616899,92.1,92.067,14.96084242]
[1773618933787,9.769,92.108,92.067,14.96084242]
[1773618935590,3.39616899,92.1,92.048,14.96084242]
[1773618937795,9.77,92.099,92.048,14.96084242]
[1773618941398,3.39616899,92.1,92.048,14.96084242]
[1773618941599,9.769,92.108,92.048,14.96084242]
[1773618942098,9.768,92.117,92.055,14.96084242]
[1773618942299,3.39616899,92.1,92.055,14.96084242]
[1773618943496,9.77,92.098,92.055,14.96084242]
[1773618945407,9.768,92.117,92.055,14.96084242]
[1773618946601,9.768,92.117,92.05,3.39616899]
[1773618946602,9.768,92.117,92.058,14.96084242]
[1773618947599,9.768,92.117,92.061,14.96084242]
[1773618948506,9.768,92.117,92.064,14.96084242]
[1773618948708,3.39616899,92.12,92.064,14.96084242]
[1773618950104,3.39616899,92.12,92.076,14.96084242]
[1773618950309,9.767,92.125,92.076,14.96084242]
[1773618951112,10.45309657,92.125,92.076,14.96084242]
[1773618951908,4.05345617,92.12,92.076,14.96084242]
[1773618954401,9.769,92.108,92.062,13.85310938]
[1773618955616,3.39616899,92.11,92.062,13.85310938]
[1773618956012,3.39616899,92.12,92.062,13.85310938]
[1773618957617,3.39616899,92.12,92.063,9.774]
[1773618957817,3.39616899,92.12,92.064,14.11924505]
[1773618958808,9.768,92.119,92.064,14.11924505]
[1773618959011,3.39616899,92.11,92.064,14.11924505]
[1773618959212,9.769,92.107,92.064,14.11924505]
[1773618960517,53.729,92.153,92.064,14.11924505]
[1773618960518,3.39616899,92.13,92.064,14.11924505]
[1773618961023,3.39616899,92.13,92.073,14.12069636]
[1773618961217,3.39616899,92.15,92.081,14.12069636]
[1773618961624,3.39616899,92.15,92.083,27.46801616]
[1773618961829,3.39616899,92.15,92.08,3.39616899]
[1773618961830,3.39616899,92.15,92.084,14.11631283]
[1773618962525,9.765,92.145,92.09,14.15874407]
[1773618962924,9.765,92.145,92.09,17.55491306]
[1773618963116,3.39616899,92.15,92.092,14.15874407]
[1773618963825,34.2,92.153,92.1,3.39616899]
[1773618964025,34.2,92.153,92.101,14.15924288]
[1773618966727,3.39616899,92.16,92.101,14.15924288]
[1773618966728,9.763,92.163,92.101,14.15924288]
[1773618966927,9.763,92.163,92.102,14.15563118]
[1773618968228,9.763,92.163,92.104,14.1908734]
[1773618968922,3.39616899,92.17,92.108,9.769]
[1773618969119,3.39616899,92.17,92.089,13.35170333]
[1773618969120,3.39616899,92.2,92.141,14.19636425]
[1773618970627,3.39616899,92.2,92.142,14.18793486]
[1773618970828,3.39027019,92.19,92.142,14.18793486]
[1773618971331,13.15127019,92.19,92.142,14.18793486]
[1773618971531,3.39027019,92.18,92.142,14.18793486]
[1773618971724,13.15127019,92.19,92.142,14.18793486]
[1773618973228,9.762,92.181,92.142,14.18793486]
[1773618974537,3.39027019,92.19,92.142,14.18793486]
[1773618975832,9.761,92.189,92.142,14.18793486]
[1773618979740,9.76,92.198,92.142,14.18793486]
[1773618980343,34.18,92.214,92.151,14.30618013]
[1773618980344,9.759,92.208,92.151,14.30618013]
[1773618980840,34.18,92.214,92.153,14.30439549]
[1773618981043,3.39027019,92.24,92.181,14.30439549]
[1773618982138,3.39027019,92.23,92.181,14.30439549]
[1773618982338,9.755,92.239,92.183,14.20246985]
[1773618982537,3.39027019,92.24,92.191,14.19888453]
[1773618983553,13.14527019,92.24,92.191,14.19888453]
[1773618983854,3.39027019,92.24,92.191,14.19888453]
[1773618984747,34.18,92.278,92.191,14.19888453]
[1773618984748,9.754,92.249,92.191,14.19888453]
[1773618985953,3.39027019,92.24,92.191,14.19888453]
[1773618986451,9.754,92.249,92.191,23.95888453]
[1773618986653,3.39027019,92.25,92.192,14.2519666]
[1773618986954,3.39027019,92.24,92.192,14.2519666]
[1773618988354,3.39027019,92.23,92.192,14.2519666]
[1773618988546,3.39027019,92.24,92.192,14.2519666]
[1773618990459,45.03,92.271,92.201,14.35446451]
[1773618990460,3.39027019,92.26,92.201,14.35446451]
[1773618990654,3.39027019,92.27,92.211,14.35446451]
[1773618990853,3.39027019,92.28,92.221,14.35446451]
[1773618991254,3.39027019,92.29,92.231,14.35446451]
[1773618991757,9.751,92.277,92.231,14.35446451]
[1773618991959,3.39027019,92.27,92.201,14.43737362]
[1773618992159,3.39027019,92.26,92.201,14.43737362]
[1773618992457,3.39027019,92.25,92.201,14.43737362]
[1773618992961,9.753,92.259,92.201,14.43737362]
[1773618997352,3.39027019,92.26,92.204,14.13121884]
[1773618998660,3.39027019,92.26,92.207,14.19711237]
[1773618999153,9.752,92.268,92.207,14.19711237]
[1773618999359,9.751,92.277,92.213,14.19711237]
[1773619000664,9.751,92.277,92.215,14.18159142]
[1773619002664,9.751,92.277,92.216,9.758]
[1773619002864,9.751,92.277,92.217,14.18360175]
[1773619003065,3.39027019,92.27,92.217,14.18360175]
[1773619003565,9.752,92.269,92.217,14.18360175]
[1773619004962,3.39027019,92.26,92.217,14.18360175]
[1773619005963,9.753,92.266,92.217,14.18360175]
[1773619006562,9.751,92.278,92.221,14.21795701]
[1773619007062,3.39027019,92.28,92.221,14.21795701]
[1773619007259,3.39027019,92.27,92.221,14.21795701]
[1773619007865,3.39027019,92.26,92.221,14.21795701]
[1773619012168,9.753,92.262,92.221,14.21795701]
[1773619014770,3.39027019,92.24,92.208,14.22634601]
[1773619014969,3.39027019,92.24,92.18,3.39027019]
[1773619015272,3.39027019,92.24,92.181,14.22634601]
[1773619016674,3.39027019,92.24,92.186,14.32292008]
[1773619017573,3.39027019,92.24,92.189,14.32801652]
[1773619020485,3.39027019,92.24,92.191,14.35702179]
[1773619020683,9.87627114,92.305,92.221,14.35702179]
[1773619020979,9.748,92.307,92.251,14.35702179]
[1773619021178,3.39027019,92.31,92.251,14.35702179]
[1773619022574,9.749,92.299,92.251,14.35702179]
[1773619023480,9.748,92.309,92.251,14.35702179]
[1773619025678,3.39027019,92.31,92.253,9.754]
[1773619025878,9.747,92.32,92.261,14.19087064]
[1773619025879,13.13727019,92.32,92.261,14.19087064]
[1773619028781,9.745,92.332,92.281,14.14477409]
[1773619032583,9.745,92.332,92.291,14.12540393]
[1773619033690,9.745,92.332,92.262,9.753]
[1773619033691,9.745,92.332,92.28,3.37829094]
[1773619033892,9.745,92.332,92.281,14.1269003]
[1773619035290,9.747,92.323,92.281,14.1269003]
[1773619035891,3.37829094,92.33,92.281,14.1269003]
[1773619036086,9.745,92.333,92.281,14.1269003]
[1773619036588,9.745,92.333,92.291,14.30377279]
[1773619040198,9.746,92.323,92.291,14.30377279]
[1773619040491,3.37829094,92.34,92.291,14.30377279]
[1773619041392,9.745,92.333,92.291,14.30377279]
[1773619041796,3.37829094,92.32,92.273,14.39035307]
[1773619041993,3.37829094,92.34,92.273,14.39035307]
[1773619042694,9.746,92.33,92.273,14.39035307]
[1773619042891,3.37829094,92.33,92.273,14.39035307]
[1773619043490,9.747,92.316,92.273,14.39035307]
[1773619044091,3.37829094,92.3,92.26,14.36965959]
[1773619044490,9.748,92.307,92.26,14.36965959]
[1773619046688,9.749,92.297,92.26,14.36965959]
[1773619050194,9.748,92.307,92.26,14.36965959]
[1773619051500,9.749,92.299,92.26,14.36965959]
[1773619051799,9.749,92.299,92.241,14.50894444]
[1773619052002,3.37829094,92.3,92.241,14.50894444]
[1773619052195,3.37829094,92.29,92.241,14.50894444]
[1773619053494,9.751,92.284,92.241,14.50894444]
[1773619054905,9.751,92.276,92.241,14.50894444]
[1773619056005,9.751,92.276,92.221,14.50214169]
[1773619060106,9.751,92.276,92.222,14.57347717]
[1773619060404,9.751,92.276,92.188,20.23443924]
[1773619060405,9.751,92.285,92.231,14.57347717]
[1773619060608,3.37829094,92.3,92.241,14.57223524]
[1773619061606,9.749,92.295,92.241,14.57223524]
[1773619062306,53.611,92.333,92.241,14.57223524]